Workbook

Sheet 開始
B1: テンプレートについて
B2: このテンプレートを使用して、1 か月の支出と貯蓄を把握しましょう。
B3: 支出をテーブルに入力し、1 か月の収入を入力して、貯蓄額を計算します。
B4: 支出と貯蓄を示すドーナツ グラフは自動更新されます。
B5: メモ:
B6: 予算ホイール ワークシートの列 A に詳細な指示が記載されています。このテキストは意図的に表示されません。テキストを削除するには、列 A を選択し、[削除] を選択します。テキストを再表示するには、列 A を選択し、フォントの色を変更します。
B7: 表の詳細については、表内で Shift キーを押しながら F10 キーを押して、[テーブル] オプション、[代替テキスト] の順に選択してください。

Sheet 予算ホイール
B1: 予算ホイール | D1: このテンプレートのテーブルに入力します。このグラフには、1 か月の収入に関連して 1 か月の支出が表示されます。また、貯蓄の予想/実際の貯蓄額を示すパーセンテージが計算されます。
B2: 毎月 収入 | G2: 貯蓄 金額
B3: ¥5,738 | G3: =貯蓄 -> ¥2,777
G4: 計算された値 (自動)
B6: 支出 | C6: カテゴリ | D6: 金額 | E6: 頻度 | F6: 月額 | G6: 総額に対する比率 (%)
B7: 保険料 | C7: 交通費 | D7: ¥300 | E7: 6 か月ごと | F7: =IF(支出[[#This Row],[金額]]>0,IF(支出[[#This Row],[頻度]]<>"",ROUND(IF(支出[[#This Row],[頻度]]="毎月",支出[金額],IF(支出[[#This Row],[頻度]]="毎週",支出[[#This Row],[金額]]*4,IF(支出[[#This Row],[頻度]]="四半期ごと",支出[[#This Row],[金額]]/3,IF(支出[[#This Row],[頻度]]="6 か月ごと",支出[[#This Row],[金額]]/6,IF(支出[[#This Row],[頻度]]="年次",支出[[#This Row],[金額]]/12,IF(支出[[#This Row],[頻度]]="隔週",支出[[#This Row],[金額]]*2,IF(支出[[#This Row],[頻度]]="隔月",支出[[#This Row],[金額]]/2,""))))))),0),""),"") -> ¥50 | G7: =IF(支出[[#This Row],[月額]]<>"",支出[[#This Row],[月額]]/収入,"") -> ¥0
B8: ガス | C8: 交通費 | D8: ¥25 | E8: 毎週 | F8: =IF(支出[[#This Row],[金額]]>0,IF(支出[[#This Row],[頻度]]<>"",ROUND(IF(支出[[#This Row],[頻度]]="毎月",支出[金額],IF(支出[[#This Row],[頻度]]="毎週",支出[[#This Row],[金額]]*4,IF(支出[[#This Row],[頻度]]="四半期ごと",支出[[#This Row],[金額]]/3,IF(支出[[#This Row],[頻度]]="6 か月ごと",支出[[#This Row],[金額]]/6,IF(支出[[#This Row],[頻度]]="年次",支出[[#This Row],[金額]]/12,IF(支出[[#This Row],[頻度]]="隔週",支出[[#This Row],[金額]]*2,IF(支出[[#This Row],[頻度]]="隔月",支出[[#This Row],[金額]]/2,""))))))),0),""),"") -> ¥100 | G8: =IF(支出[[#This Row],[月額]]<>"",支出[[#This Row],[月額]]/収入,"") -> ¥0
B9: 自動車ローン | C9: 交通費 | D9: ¥200 | E9: 毎月 | F9: =IF(支出[[#This Row],[金額]]>0,IF(支出[[#This Row],[頻度]]<>"",ROUND(IF(支出[[#This Row],[頻度]]="毎月",支出[金額],IF(支出[[#This Row],[頻度]]="毎週",支出[[#This Row],[金額]]*4,IF(支出[[#This Row],[頻度]]="四半期ごと",支出[[#This Row],[金額]]/3,IF(支出[[#This Row],[頻度]]="6 か月ごと",支出[[#This Row],[金額]]/6,IF(支出[[#This Row],[頻度]]="年次",支出[[#This Row],[金額]]/12,IF(支出[[#This Row],[頻度]]="隔週",支出[[#This Row],[金額]]*2,IF(支出[[#This Row],[頻度]]="隔月",支出[[#This Row],[金額]]/2,""))))))),0),""),"") -> ¥200 | G9: =IF(支出[[#This Row],[月額]]<>"",支出[[#This Row],[月額]]/収入,"") -> ¥0
B10: 住宅ローン | C10: 自宅 | D10: ¥1,600 | E10: 毎月 | F10: =IF(支出[[#This Row],[金額]]>0,IF(支出[[#This Row],[頻度]]<>"",ROUND(IF(支出[[#This Row],[頻度]]="毎月",支出[金額],IF(支出[[#This Row],[頻度]]="毎週",支出[[#This Row],[金額]]*4,IF(支出[[#This Row],[頻度]]="四半期ごと",支出[[#This Row],[金額]]/3,IF(支出[[#This Row],[頻度]]="6 か月ごと",支出[[#This Row],[金額]]/6,IF(支出[[#This Row],[頻度]]="年次",支出[[#This Row],[金額]]/12,IF(支出[[#This Row],[頻度]]="隔週",支出[[#This Row],[金額]]*2,IF(支出[[#This Row],[頻度]]="隔月",支出[[#This Row],[金額]]/2,""))))))),0),""),"") -> ¥1,600 | G10: =IF(支出[[#This Row],[月額]]<>"",支出[[#This Row],[月額]]/収入,"") -> ¥0
B11: 受信料 | C11: 自宅 | D11: ¥60 | E11: 毎月 | F11: =IF(支出[[#This Row],[金額]]>0,IF(支出[[#This Row],[頻度]]<>"",ROUND(IF(支出[[#This Row],[頻度]]="毎月",支出[金額],IF(支出[[#This Row],[頻度]]="毎週",支出[[#This Row],[金額]]*4,IF(支出[[#This Row],[頻度]]="四半期ごと",支出[[#This Row],[金額]]/3,IF(支出[[#This Row],[頻度]]="6 か月ごと",支出[[#This Row],[金額]]/6,IF(支出[[#This Row],[頻度]]="年次",支出[[#This Row],[金額]]/12,IF(支出[[#This Row],[頻度]]="隔週",支出[[#This Row],[金額]]*2,IF(支出[[#This Row],[頻度]]="隔月",支出[[#This Row],[金額]]/2,""))))))),0),""),"") -> ¥60 | G11: =IF(支出[[#This Row],[月額]]<>"",支出[[#This Row],[月額]]/収入,"") -> ¥0
B12: 夜の映画鑑賞 | C12: 娯楽 | D12: ¥70 | E12: 毎月 | F12: =IF(支出[[#This Row],[金額]]>0,IF(支出[[#This Row],[頻度]]<>"",ROUND(IF(支出[[#This Row],[頻度]]="毎月",支出[金額],IF(支出[[#This Row],[頻度]]="毎週",支出[[#This Row],[金額]]*4,IF(支出[[#This Row],[頻度]]="四半期ごと",支出[[#This Row],[金額]]/3,IF(支出[[#This Row],[頻度]]="6 か月ごと",支出[[#This Row],[金額]]/6,IF(支出[[#This Row],[頻度]]="年次",支出[[#This Row],[金額]]/12,IF(支出[[#This Row],[頻度]]="隔週",支出[[#This Row],[金額]]*2,IF(支出[[#This Row],[頻度]]="隔月",支出[[#This Row],[金額]]/2,""))))))),0),""),"") -> ¥70 | G12: =IF(支出[[#This Row],[月額]]<>"",支出[[#This Row],[月額]]/収入,"") -> ¥0
B13: 運動靴 | C13: その他 | D13: ¥300 | E13: 年次 | F13: =IF(支出[[#This Row],[金額]]>0,IF(支出[[#This Row],[頻度]]<>"",ROUND(IF(支出[[#This Row],[頻度]]="毎月",支出[金額],IF(支出[[#This Row],[頻度]]="毎週",支出[[#This Row],[金額]]*4,IF(支出[[#This Row],[頻度]]="四半期ごと",支出[[#This Row],[金額]]/3,IF(支出[[#This Row],[頻度]]="6 か月ごと",支出[[#This Row],[金額]]/6,IF(支出[[#This Row],[頻度]]="年次",支出[[#This Row],[金額]]/12,IF(支出[[#This Row],[頻度]]="隔週",支出[[#This Row],[金額]]*2,IF(支出[[#This Row],[頻度]]="隔月",支出[[#This Row],[金額]]/2,""))))))),0),""),"") -> ¥25 | G13: =IF(支出[[#This Row],[月額]]<>"",支出[[#This Row],[月額]]/収入,"") -> ¥0
B14: ドッグ フード | C14: その他 | D14: ¥60 | E14: 毎月 | F14: =IF(支出[[#This Row],[金額]]>0,IF(支出[[#This Row],[頻度]]<>"",ROUND(IF(支出[[#This Row],[頻度]]="毎月",支出[金額],IF(支出[[#This Row],[頻度]]="毎週",支出[[#This Row],[金額]]*4,IF(支出[[#This Row],[頻度]]="四半期ごと",支出[[#This Row],[金額]]/3,IF(支出[[#This Row],[頻度]]="6 か月ごと",支出[[#This Row],[金額]]/6,IF(支出[[#This Row],[頻度]]="年次",支出[[#This Row],[金額]]/12,IF(支出[[#This Row],[頻度]]="隔週",支出[[#This Row],[金額]]*2,IF(支出[[#This Row],[頻度]]="隔月",支出[[#This Row],[金額]]/2,""))))))),0),""),"") -> ¥60 | G14: =IF(支出[[#This Row],[月額]]<>"",支出[[#This Row],[月額]]/収入,"") -> ¥0
B15: ペット保険 | C15: その他 | D15: ¥70 | E15: 年次 | F15: =IF(支出[[#This Row],[金額]]>0,IF(支出[[#This Row],[頻度]]<>"",ROUND(IF(支出[[#This Row],[頻度]]="毎月",支出[金額],IF(支出[[#This Row],[頻度]]="毎週",支出[[#This Row],[金額]]*4,IF(支出[[#This Row],[頻度]]="四半期ごと",支出[[#This Row],[金額]]/3,IF(支出[[#This Row],[頻度]]="6 か月ごと",支出[[#This Row],[金額]]/6,IF(支出[[#This Row],[頻度]]="年次",支出[[#This Row],[金額]]/12,IF(支出[[#This Row],[頻度]]="隔週",支出[[#This Row],[金額]]*2,IF(支出[[#This Row],[頻度]]="隔月",支出[[#This Row],[金額]]/2,""))))))),0),""),"") -> ¥6 | G15: =IF(支出[[#This Row],[月額]]<>"",支出[[#This Row],[月額]]/収入,"") -> ¥0
B16: 食料品 | C16: 食費 | D16: ¥100 | E16: 毎週 | F16: =IF(支出[[#This Row],[金額]]>0,IF(支出[[#This Row],[頻度]]<>"",ROUND(IF(支出[[#This Row],[頻度]]="毎月",支出[金額],IF(支出[[#This Row],[頻度]]="毎週",支出[[#This Row],[金額]]*4,IF(支出[[#This Row],[頻度]]="四半期ごと",支出[[#This Row],[金額]]/3,IF(支出[[#This Row],[頻度]]="6 か月ごと",支出[[#This Row],[金額]]/6,IF(支出[[#This Row],[頻度]]="年次",支出[[#This Row],[金額]]/12,IF(支出[[#This Row],[頻度]]="隔週",支出[[#This Row],[金額]]*2,IF(支出[[#This Row],[頻度]]="隔月",支出[[#This Row],[金額]]/2,""))))))),0),""),"") -> ¥400 | G16: =IF(支出[[#This Row],[月額]]<>"",支出[[#This Row],[月額]]/収入,"") -> ¥0
B17: コーヒー | C17: 食費 | D17: ¥25 | E17: 毎週 | F17: =IF(支出[[#This Row],[金額]]>0,IF(支出[[#This Row],[頻度]]<>"",ROUND(IF(支出[[#This Row],[頻度]]="毎月",支出[金額],IF(支出[[#This Row],[頻度]]="毎週",支出[[#This Row],[金額]]*4,IF(支出[[#This Row],[頻度]]="四半期ごと",支出[[#This Row],[金額]]/3,IF(支出[[#This Row],[頻度]]="6 か月ごと",支出[[#This Row],[金額]]/6,IF(支出[[#This Row],[頻度]]="年次",支出[[#This Row],[金額]]/12,IF(支出[[#This Row],[頻度]]="隔週",支出[[#This Row],[金額]]*2,IF(支出[[#This Row],[頻度]]="隔月",支出[[#This Row],[金額]]/2,""))))))),0),""),"") -> ¥100 | G17: =IF(支出[[#This Row],[月額]]<>"",支出[[#This Row],[月額]]/収入,"") -> ¥0
B18: 登山用具 | C18: 娯楽 | D18: ¥170 | E18: 年次 | F18: =IF(支出[[#This Row],[金額]]>0,IF(支出[[#This Row],[頻度]]<>"",ROUND(IF(支出[[#This Row],[頻度]]="毎月",支出[金額],IF(支出[[#This Row],[頻度]]="毎週",支出[[#This Row],[金額]]*4,IF(支出[[#This Row],[頻度]]="四半期ごと",支出[[#This Row],[金額]]/3,IF(支出[[#This Row],[頻度]]="6 か月ごと",支出[[#This Row],[金額]]/6,IF(支出[[#This Row],[頻度]]="年次",支出[[#This Row],[金額]]/12,IF(支出[[#This Row],[頻度]]="隔週",支出[[#This Row],[金額]]*2,IF(支出[[#This Row],[頻度]]="隔月",支出[[#This Row],[金額]]/2,""))))))),0),""),"") -> ¥14 | G18: =IF(支出[[#This Row],[月額]]<>"",支出[[#This Row],[月額]]/収入,"") -> ¥0
B19: ジム会費 | C19: その他 | D19: ¥60 | E19: 毎月 | F19: =IF(支出[[#This Row],[金額]]>0,IF(支出[[#This Row],[頻度]]<>"",ROUND(IF(支出[[#This Row],[頻度]]="毎月",支出[金額],IF(支出[[#This Row],[頻度]]="毎週",支出[[#This Row],[金額]]*4,IF(支出[[#This Row],[頻度]]="四半期ごと",支出[[#This Row],[金額]]/3,IF(支出[[#This Row],[頻度]]="6 か月ごと",支出[[#This Row],[金額]]/6,IF(支出[[#This Row],[頻度]]="年次",支出[[#This Row],[金額]]/12,IF(支出[[#This Row],[頻度]]="隔週",支出[[#This Row],[金額]]*2,IF(支出[[#This Row],[頻度]]="隔月",支出[[#This Row],[金額]]/2,""))))))),0),""),"") -> ¥60 | G19: =IF(支出[[#This Row],[月額]]<>"",支出[[#This Row],[月額]]/収入,"") -> ¥0
B20: ヘッドフォン | C20: 娯楽 | D20: ¥50 | E20: 年次 | F20: =IF(支出[[#This Row],[金額]]>0,IF(支出[[#This Row],[頻度]]<>"",ROUND(IF(支出[[#This Row],[頻度]]="毎月",支出[金額],IF(支出[[#This Row],[頻度]]="毎週",支出[[#This Row],[金額]]*4,IF(支出[[#This Row],[頻度]]="四半期ごと",支出[[#This Row],[金額]]/3,IF(支出[[#This Row],[頻度]]="6 か月ごと",支出[[#This Row],[金額]]/6,IF(支出[[#This Row],[頻度]]="年次",支出[[#This Row],[金額]]/12,IF(支出[[#This Row],[頻度]]="隔週",支出[[#This Row],[金額]]*2,IF(支出[[#This Row],[頻度]]="隔月",支出[[#This Row],[金額]]/2,""))))))),0),""),"") -> ¥4 | G20: =IF(支出[[#This Row],[月額]]<>"",支出[[#This Row],[月額]]/収入,"") -> ¥0
B21: 散髪代 | C21: その他 | D21: ¥70 | E21: 毎月 | F21: =IF(支出[[#This Row],[金額]]>0,IF(支出[[#This Row],[頻度]]<>"",ROUND(IF(支出[[#This Row],[頻度]]="毎月",支出[金額],IF(支出[[#This Row],[頻度]]="毎週",支出[[#This Row],[金額]]*4,IF(支出[[#This Row],[頻度]]="四半期ごと",支出[[#This Row],[金額]]/3,IF(支出[[#This Row],[頻度]]="6 か月ごと",支出[[#This Row],[金額]]/6,IF(支出[[#This Row],[頻度]]="年次",支出[[#This Row],[金額]]/12,IF(支出[[#This Row],[頻度]]="隔週",支出[[#This Row],[金額]]*2,IF(支出[[#This Row],[頻度]]="隔月",支出[[#This Row],[金額]]/2,""))))))),0),""),"") -> ¥70 | G21: =IF(支出[[#This Row],[月額]]<>"",支出[[#This Row],[月額]]/収入,"") -> ¥0
B22: ビデオ ゲーム | C22: 娯楽 | D22: ¥100 | E22: 毎月 | F22: =IF(支出[[#This Row],[金額]]>0,IF(支出[[#This Row],[頻度]]<>"",ROUND(IF(支出[[#This Row],[頻度]]="毎月",支出[金額],IF(支出[[#This Row],[頻度]]="毎週",支出[[#This Row],[金額]]*4,IF(支出[[#This Row],[頻度]]="四半期ごと",支出[[#This Row],[金額]]/3,IF(支出[[#This Row],[頻度]]="6 か月ごと",支出[[#This Row],[金額]]/6,IF(支出[[#This Row],[頻度]]="年次",支出[[#This Row],[金額]]/12,IF(支出[[#This Row],[頻度]]="隔週",支出[[#This Row],[金額]]*2,IF(支出[[#This Row],[頻度]]="隔月",支出[[#This Row],[金額]]/2,""))))))),0),""),"") -> ¥100 | G22: =IF(支出[[#This Row],[月額]]<>"",支出[[#This Row],[月額]]/収入,"") -> ¥0
B23: 衣服 | C23: その他 | D23: ¥500 | E23: 年次 | F23: =IF(支出[[#This Row],[金額]]>0,IF(支出[[#This Row],[頻度]]<>"",ROUND(IF(支出[[#This Row],[頻度]]="毎月",支出[金額],IF(支出[[#This Row],[頻度]]="毎週",支出[[#This Row],[金額]]*4,IF(支出[[#This Row],[頻度]]="四半期ごと",支出[[#This Row],[金額]]/3,IF(支出[[#This Row],[頻度]]="6 か月ごと",支出[[#This Row],[金額]]/6,IF(支出[[#This Row],[頻度]]="年次",支出[[#This Row],[金額]]/12,IF(支出[[#This Row],[頻度]]="隔週",支出[[#This Row],[金額]]*2,IF(支出[[#This Row],[頻度]]="隔月",支出[[#This Row],[金額]]/2,""))))))),0),""),"") -> ¥42 | G23: =IF(支出[[#This Row],[月額]]<>"",支出[[#This Row],[月額]]/収入,"") -> ¥0

Sheet データ (hidden)
A1: このシートは非表示のままにする必要があります
A2: カテゴリ | B2: カテゴリ別の金額 | C2: 合計のパーセンテージ | D2: 頻度 | E2: 貯蓄
A3: 自宅 | B3: =IF(SUMIF(支出[カテゴリ],"自宅",支出[月額])>0,SUMIF(支出[カテゴリ],"自宅",支出[月額]),NA()) -> ¥1,660 | C3: =IF(B3>0,B3/収入,"") -> ¥0 | D3: 毎週 | E3: =収入-SUM(支出[月額]) -> ¥2,777
A4: 娯楽 | B4: =IF(SUMIF(支出[カテゴリ],"娯楽",支出[月額])>0,SUMIF(支出[カテゴリ],"娯楽",支出[月額]),NA()) -> ¥188 | C4: ¥0 | D4: 毎月
A5: 交通費 | B5: =IF(SUMIF(支出[カテゴリ],"交通費",支出[月額])>0,SUMIF(支出[カテゴリ],"交通費",支出[月額]),NA()) -> ¥350 | C5: ¥0 | D5: 四半期ごと
A6: 食費 | B6: =IF(SUMIF(支出[カテゴリ],"食費",支出[月額])>0,SUMIF(支出[カテゴリ],"食費",支出[月額]),NA()) -> ¥500 | C6: ¥0 | D6: 6 か月ごと
A7: その他 | B7: =IF(SUMIF(支出[カテゴリ],"その他",支出[月額])>0,SUMIF(支出[カテゴリ],"その他",支出[月額]),NA()) -> ¥263 | C7: ¥0 | D7: 年次
A8: 貯蓄 | B8: =IF(E3>0,E3,NA()) -> ¥2,777 | C8: ¥0 | D8: 隔週
D9: 隔月
B10: 合計: | C10: =SUM(C3:C8) -> ¥1
